bitfinex/quotes_BTCUSD_20250226
["timestamp","ask_amount","ask_price","bid_price","bid_amount"]
[1740590653270,0.0402576,87128.0,87112.0,1.8]
[1740590653471,0.172179,87119.0,87114.0,0.01122312]
[1740590653721,0.172174,87121.0,87113.0,0.31122312]
[1740590653898,0.0004232,87147.0,87114.0,0.01122312]
[1740590654051,0.172168,87124.0,87123.0,1.5]
[1740590654251,0.172188,87114.0,87113.0,0.31122312]
[1740590654459,0.172211,87102.0,87101.0,0.00097044]
[1740590654662,0.172211,87102.0,87101.0,0.01219356]
[1740590655081,0.229556,87125.0,87105.0,0.01122312]
[1740590655283,0.172196,87110.0,87109.0,0.01122312]
[1740590655924,0.172196,87110.0,87109.0,1.81122312]
[1740590656128,0.172196,87110.0,87109.0,1.8]
[1740590656340,0.229587,87113.0,87101.0,0.00097044]
[1740590656341,0.172211,87102.0,87101.0,0.00097044]
[1740590656685,0.172211,87102.0,87101.0,1.50097044]
[1740590657116,0.172211,87102.0,87101.0,0.00097044]
[1740590657890,0.172211,87102.0,87076.0,0.0456]
[1740590657891,0.192212,87101.0,87100.0,4.4e-07]
[1740590658181,0.192212,87101.0,87062.0,0.3694]
[1740590658182,0.172271,87072.0,87071.0,0.01622312]
[1740590658391,0.3283,87100.0,87073.0,0.01122312]
[1740590658595,0.019999,87111.0,87071.0,0.005]
[1740590658596,0.019999,87102.0,87071.0,0.005]
[1740590658779,0.01593539,87107.0,87071.0,0.01622312]
[1740590658780,0.172271,87072.0,87071.0,0.01622312]
[1740590659118,0.172271,87072.0,87071.0,0.00122312]
[1740590659327,0.229665,87084.0,87073.0,0.00122312]
[1740590659564,0.09184687,87122.0,87073.0,0.00122312]
[1740590659565,0.172267,87074.0,87073.0,0.00122312]
[1740590660358,0.229681,87078.0,87073.0,0.00122312]
[1740590660359,0.229641,87093.0,87073.0,0.00122312]
[1740590660554,0.229641,87093.0,87079.0,0.00122312]
[1740590660715,0.22967,87082.0,87079.0,0.00122312]
[1740590660921,0.2296,87108.0,87084.0,0.00122312]
[1740590661122,0.172245,87085.0,87084.0,0.00122312]
[1740590662315,0.172253,87081.0,87080.0,0.00122312]
[1740590662725,0.42014687,87127.0,87086.0,0.00122312]
[1740590662928,0.172241,87087.0,87086.0,0.00122312]
[1740590663448,0.229645,87091.0,87086.0,0.00122312]
[1740590663623,0.172233,87091.0,87090.0,0.00122312]
[1740590664638,0.229587,87113.0,87096.0,0.00122312]
[1740590664840,0.172221,87097.0,87096.0,0.00122312]
[1740590666543,0.172225,87095.0,87094.0,0.3]
[1740590666747,0.172255,87080.0,87079.0,0.3233]
[1740590666959,0.229666,87083.0,87080.0,0.00122312]
[1740590667179,0.344428,87101.0,87083.0,0.00122312]
[1740590667387,0.172247,87084.0,87083.0,0.00122312]
[1740590668179,0.229656,87087.0,87071.0,0.3]
[1740590668383,0.172271,87072.0,87071.0,0.30122312]
[1740590668540,0.172271,87072.0,87071.0,0.3]
[1740590668950,0.172271,87072.0,87071.0,0.30122312]
[1740590669146,0.172259,87078.0,87077.0,0.00122312]
[1740590669605,0.3283,87112.0,87085.0,0.00122312]
[1740590669817,0.3283,87112.0,87069.0,0.3]
[1740590669818,0.172239,87088.0,87087.0,0.00122312]
[1740590669989,0.3283,87124.0,87093.0,0.00122312]
[1740590670181,0.172227,87094.0,87093.0,0.00122312]
[1740590670381,0.3283,87124.0,87093.0,0.00122312]
[1740590670382,0.229562,87123.0,87099.0,0.00122312]
[1740590670653,0.1722,87108.0,87107.0,0.00122312]
[1740590671222,0.21157269,87108.0,87107.0,0.00122312]
[1740590671624,0.21169622,87108.0,87107.0,0.00122312]
[1740590672793,0.17232353,87108.0,87107.0,0.00122312]
[1740590673197,0.00012353,87108.0,87107.0,0.00122312]
[1740590674395,0.00012353,87108.0,87107.0,0.33906397]
[1740590674626,0.00012353,87108.0,87107.0,0.63906397]
[1740590674828,0.00012353,87108.0,87107.0,0.81126597]
[1740590675070,0.00012353,87108.0,87107.0,2.35956597]
[1740590676058,0.00012353,87108.0,87107.0,2.4733135]
[1740590676262,0.00012353,87108.0,87107.0,2.5495135]
[1740590677244,0.00012353,87108.0,87107.0,2.44680597]
[1740590677589,0.00012353,87108.0,87107.0,2.27456397]
[1740590677996,0.00012353,87108.0,87107.0,2.44676597]
[1740590678150,0.00012353,87108.0,87107.0,2.5605135]
[1740590678564,0.172139,87139.0,87107.0,3.1083135]
[1740590678767,0.172141,87138.0,87118.0,0.0454]
[1740590678963,0.0001236,87139.0,87138.0,0.00122312]
[1740590679142,0.0001236,87139.0,87138.0,2.36760397]
[1740590679772,0.0001236,87139.0,87138.0,2.4813515]
[1740590680141,0.00485,87166.0,87138.0,2.4813515]
[1740590680142,0.00485,87166.0,87146.0,0.53884712]
[1740590680349,0.00485,87166.0,87146.0,1.52369465]
[1740590681014,0.00485,87166.0,87146.0,3.02369465]
[1740590681172,0.00485,87166.0,87146.0,3.11869465]
[1740590681390,0.00485,87166.0,87165.0,0.00122312]
[1740590681571,0.0052619,87166.0,87165.0,1.53210403]
[1740590681789,0.0052619,87166.0,87165.0,1.5504985]
[1740590682205,0.0052619,87166.0,87165.0,2.74466397]
[1740590682405,0.0052619,87166.0,87165.0,2.91675097]
[1740590683538,0.0052619,87166.0,87165.0,3.0304985]
[1740590684249,0.0052619,87166.0,87165.0,3.0504985]
[1740590685388,0.0052619,87166.0,87165.0,3.0304985]
[1740590685703,0.0052619,87166.0,87165.0,3.0504985]
[1740590686118,0.0056974,87179.0,87167.0,0.49330612]
[1740590686320,0.0001935,87168.0,87167.0,0.71344137]
[1740590686529,0.0001935,87168.0,87167.0,0.72464137]
[1740590687131,0.0001935,87168.0,87167.0,2.22464137]
[1740590688153,0.0001935,87168.0,87167.0,2.34594137]
[1740590688355,0.0001935,87168.0,87167.0,2.1015945]
[1740590688587,0.0001935,87168.0,87167.0,2.1327545]
[1740590688797,0.0056974,87179.0,87173.0,0.57383497]
[1740590688798,6e-07,87174.0,87173.0,0.57383497]
[1740590689011,0.0056974,87179.0,87176.0,0.57382897]
[1740590689217,0.0056974,87179.0,87176.0,0.6875765]
[1740590689556,7.7e-07,87179.0,87178.0,0.51328412]
[1740590689790,0.00485,87192.0,87182.0,1.02781697]
[1740590689989,0.00485,87192.0,87182.0,2.3216898]
[1740590690240,0.00485,87243.0,87204.0,0.51627926]
[1740590690453,0.00485,87243.0,87215.0,0.02122312]
[1740590690671,0.01146252,87216.0,87215.0,1.7836248]
[1740590690879,0.01146252,87216.0,87215.0,0.6501995]
[1740590691314,0.01146252,87216.0,87215.0,2.03522885]
[1740590691532,0.01146252,87216.0,87215.0,2.73556397]
[1740590691959,0.01146252,87216.0,87215.0,3.0212995]
[1740590692411,0.01146252,87216.0,87215.0,4.1547248]
[1740590693507,0.01146252,87216.0,87215.0,3.0212995]
[1740590694619,0.01146252,87216.0,87215.0,2.73214312]
[1740590694620,0.01188612,87216.0,87215.0,2.73214312]
[1740590694863,0.01188612,87216.0,87215.0,2.90413112]
[1740590695078,0.01188612,87216.0,87215.0,2.6711]
[1740590695299,0.01188612,87216.0,87215.0,1.1711]
[1740590695515,0.01188612,87216.0,87215.0,1.17232312]
[1740590695738,0.01188612,87216.0,87215.0,2.68686397]
[1740590696224,0.01188612,87216.0,87215.0,0.88686397]
[1740590696422,0.01188612,87216.0,87215.0,1.35885197]
[1740590696631,0.01188612,87216.0,87215.0,2.68686397]
[1740590698798,0.18387212,87216.0,87215.0,2.68564085]
[1740590699313,0.01188612,87216.0,87215.0,1.80122312]
[1740590699450,0.01188612,87216.0,87215.0,1.81576397]
[1740590699875,0.01188612,87216.0,87215.0,2.31105197]
[1740590700074,0.01188612,87216.0,87215.0,2.13906397]
[1740590700566,0.01188612,87216.0,87215.0,2.31105197]
[1740590701563,0.01188612,87216.0,87215.0,2.13784085]
[1740590701564,0.18387212,87216.0,87215.0,2.13784085]
[1740590701763,0.18387212,87216.0,87215.0,2.13906397]
[1740590701912,0.01188612,87216.0,87215.0,2.1233]
[1740590702113,0.01188612,87216.0,87215.0,2.12452312]
[1740590702595,0.01188612,87216.0,87215.0,2.31105197]
[1740590702819,0.01188612,87216.0,87215.0,2.13906397]
[1740590703189,0.01188612,87216.0,87215.0,2.12452312]
[1740590703190,0.18387212,87216.0,87215.0,2.12452312]
[1740590703385,0.18387212,87216.0,87215.0,1.5]
[1740590703731,0.22987247,87216.0,87215.0,0.00122312]
[1740590704167,0.22987247,87216.0,87215.0,1.50122312]
[1740590704294,0.00485,87217.0,87216.0,0.00122312]
[1740590704492,0.176834,87217.0,87216.0,0.30122312]
[1740590704973,0.00485,87217.0,87216.0,0.31576397]
[1740590705774,0.00485,87217.0,87216.0,0.81104997]
[1740590705986,0.00485,87217.0,87216.0,1.58050575]
[1740590706342,0.00485,87217.0,87216.0,3.08050575]
[1740590708428,0.229259,87238.0,87217.0,0.01454085]
[1740590708581,0.171943,87239.0,87220.0,0.01454085]
[1740590708757,0.00497345,87243.0,87223.0,0.01454085]
[1740590708968,0.401182,87242.0,87241.0,0.00122312]
[1740590709178,0.401182,87242.0,87241.0,0.6233]
[1740590709759,0.401182,87242.0,87241.0,0.3233]
[1740590710521,0.171955,87232.0,87231.0,1.5]
[1740590710722,0.00497345,87243.0,87218.0,0.00122312]
[1740590710723,0.0778,87242.0,87218.0,0.00122312]
[1740590710927,0.0778,87242.0,87224.0,0.00122312]
[1740590711328,0.0778,87242.0,87210.0,1.5]
[1740590711329,0.171986,87216.0,87210.0,1.5]
[1740590712696,0.171986,87216.0,87192.0,0.3233]
[1740590713021,0.171986,87216.0,87208.0,0.00122312]
[1740590713247,0.171986,87216.0,87211.0,0.00122312]
[1740590713826,0.45845,87251.0,87220.0,0.00122312]
[1740590713827,0.034484,87251.0,87220.0,0.00122312]
[1740590714038,0.034484,87251.0,87212.0,0.36354085]
[1740590714039,0.00497345,87243.0,87234.0,0.00122312]
[1740590714237,0.00497345,87243.0,87222.0,0.3]
[1740590714238,0.00497345,87243.0,87242.0,0.00122312]
[1740590714394,0.17690645,87243.0,87242.0,0.00122312]
[1740590714994,0.00497345,87243.0,87242.0,1.81576397]
[1740590715204,0.17690645,87243.0,87242.0,1.81576397]
[1740590715384,0.00497345,87243.0,87242.0,1.81576397]
[1740590715564,0.17690645,87243.0,87242.0,1.81576397]
[1740590715967,0.00497345,87243.0,87242.0,1.81576397]
[1740590716454,0.17690645,87243.0,87242.0,1.81576397]
[1740590716664,0.17690645,87243.0,87242.0,1.5]
[1740590716880,0.229248,87242.0,87240.0,0.00122312]
[1740590717290,0.171937,87241.0,87240.0,0.00122312]
[1740590717461,0.229248,87242.0,87240.0,0.00122312]
[1740590717665,0.171937,87241.0,87240.0,0.00122312]
[1740590718856,0.17690645,87243.0,87242.0,0.00122312]
[1740590719082,0.23464375,87243.0,87240.0,0.00122312]
[1740590719292,0.00539675,87243.0,87220.0,0.00122312]
[1740590719487,0.00539675,87243.0,87207.0,0.5478]
[1740590719488,0.171986,87216.0,87215.0,0.00206972]
[1740590720229,0.175986,87216.0,87215.0,0.00206972]
[1740590720441,0.175986,87216.0,87215.0,0.01301976]
[1740590720825,0.004,87216.0,87215.0,0.02756061]
[1740590721054,0.175986,87216.0,87215.0,0.02756061]
[1740590721487,0.175986,87216.0,87215.0,0.01301976]
[1740590721684,0.22378078,87216.0,87215.0,0.01179664]
[1740590721899,0.22378078,87216.0,87215.0,0.01301976]
[1740590722236,0.22378078,87216.0,87215.0,0.00206972]
[1740590723101,0.05179478,87216.0,87189.0,0.3233]
[1740590723295,0.172042,87188.0,87187.0,0.00122312]
[1740590723522,0.06048034,87216.0,87163.0,0.0481]
[1740590723523,0.172038,87190.0,87189.0,0.00012352]
[1740590725496,0.172038,87190.0,87189.0,5.2e-07]
[1740590726737,0.18082537,87190.0,87189.0,5.2e-07]
[1740590728704,0.172085,87166.0,87164.0,0.00122312]
[1740590728912,0.172085,87166.0,87160.0,1.505]
[1740590729061,0.172085,87166.0,87160.0,0.005]
[1740590729826,0.21832701,87166.0,87160.0,0.005]
[1740590730109,0.229417,87178.0,87165.0,0.00207032]
[1740590730331,0.3283,87193.0,87173.0,0.00122312]
[1740590730522,0.172047,87185.0,87184.0,0.00122312]
[1740590730747,0.229342,87206.0,87184.0,0.00122312]
[1740590730935,0.10169152,87207.0,87193.0,0.00122312]
[1740590730936,0.17203,87194.0,87193.0,0.00122312]
[1740590731089,0.00012336,87200.0,87193.0,0.00122312]
[1740590731292,0.00012336,87200.0,87199.0,0.00122312]
[1740590731703,0.17214136,87200.0,87199.0,0.01576397]
[1740590732532,0.17214136,87200.0,87199.0,0.00122312]
[1740590733718,0.229363,87198.0,87194.0,0.3]
[1740590733989,0.172026,87196.0,87195.0,0.00122312]
[1740590734622,0.172024,87197.0,87195.0,0.00122312]
[1740590735115,0.172024,87197.0,87196.0,0.3]
[1740590735447,0.172024,87197.0,87196.0,0.30122312]
[1740590735643,0.172024,87197.0,87196.0,0.3]
[1740590735980,0.172024,87197.0,87196.0,0.30122312]
[1740590736182,0.172028,87195.0,87194.0,0.3]
[1740590736391,0.172049,87184.0,87183.0,0.00122312]
[1740590736587,0.09185017,87200.0,87166.0,0.3233]
[1740590736905,0.172081,87168.0,87167.0,1.50122312]
[1740590737110,0.172081,87168.0,87167.0,1.83906397]
[1740590737318,0.172081,87168.0,87167.0,1.82452312]
[1740590737640,0.229439,87170.0,87167.0,1.82452312]
[1740590737641,0.229414,87179.0,87168.0,0.3]
[1740590737841,0.172063,87177.0,87176.0,0.00122312]
[1740590739411,0.229374,87194.0,87183.0,0.00122312]
[1740590739620,0.00012338,87194.0,87189.0,0.00122312]
[1740590739837,0.00012338,87194.0,87193.0,0.00122312]
[1740590740048,0.00012338,87194.0,87193.0,0.30122312]
[1740590740261,0.00012338,87194.0,87193.0,0.86019597]
[1740590740511,0.00012338,87194.0,87193.0,0.68816397]
[1740590740711,0.00012338,87194.0,87193.0,2.18816397]
[1740590741170,0.17215338,87194.0,87193.0,2.18694085]
[1740590741366,0.17215338,87194.0,87193.0,2.17362312]
[1740590741516,0.17215338,87194.0,87193.0,2.1233]
[1740590741938,0.17215338,87194.0,87193.0,0.3233]
[1740590743181,0.17215338,87194.0,87193.0,0.32452312]
[1740590743593,0.00012338,87194.0,87193.0,0.63906397]
[1740590743763,0.00012338,87194.0,87193.0,2.13906397]
[1740590743975,0.17215338,87194.0,87193.0,2.13906397]
[1740590744214,0.17215338,87194.0,87193.0,2.12452312]
[1740590744441,0.17215338,87194.0,87193.0,1.80122312]
[1740590744630,0.17215338,87194.0,87193.0,1.8]
[1740590744838,0.172049,87184.0,87183.0,0.3233]
[1740590745033,0.229397,87186.0,87180.0,0.00122312]
[1740590745195,0.229397,87186.0,87178.0,0.000847]
[1740590745196,0.172059,87179.0,87178.0,0.00207012]
[1740590745608,0.00012338,87194.0,87178.0,0.00207012]
[1740590745810,0.229376,87193.0,87187.0,0.00122312]
[1740590746161,0.172042,87188.0,87187.0,0.00122312]
[1740590746500,0.229386,87190.0,87187.0,0.00122312]
[1740590746501,0.229389,87189.0,87187.0,0.00122312]
[1740590746730,0.172042,87188.0,87187.0,0.00122312]
[1740590746959,0.229386,87190.0,87178.0,0.00207012]
[1740590746960,0.172059,87179.0,87178.0,0.00207012]
[1740590747392,0.00012338,87194.0,87178.0,0.00207012]
[1740590747535,0.172047,87185.0,87184.0,0.00122312]
[1740590748185,0.229378,87192.0,87178.0,0.000847]
[1740590748358,0.172047,87185.0,87184.0,0.00122312]
[1740590748565,0.172059,87179.0,87178.0,0.00207012]
[1740590749162,0.172059,87179.0,87178.0,0.000847]
[1740590749382,0.172059,87179.0,87178.0,0.00207012]
[1740590749790,0.172059,87179.0,87178.0,0.000847]
[1740590751333,0.01976153,87209.0,87178.0,0.000847]
[1740590751531,0.023999,87216.0,87178.0,0.000847]
[1740590751532,0.172051,87183.0,87182.0,0.00122312]
[1740590752110,0.172053,87182.0,87181.0,0.00122312]
[1740590752511,0.172059,87179.0,87178.0,0.00207012]
[1740590752740,0.172059,87179.0,87178.0,0.000847]
[1740590756761,0.172059,87179.0,87165.0,0.0008472]
[1740590756762,0.172085,87166.0,87165.0,0.0008472]
[1740590756990,0.172085,87166.0,87165.0,2e-07]
[1740590757635,0.22944,87169.0,87165.0,2e-07]
[1740590757837,0.172085,87166.0,87165.0,2e-07]
[1740590758041,0.21871742,87166.0,87165.0,2e-07]
[1740590758662,0.21871742,87166.0,87147.0,0.005]
[1740590758663,0.17212,87148.0,87147.0,0.005]
[1740590758860,0.17212,87148.0,87147.0,0.0054119]
[1740590759502,0.17212,87148.0,87147.0,9e-07]
[1740590760899,0.18085413,87148.0,87147.0,9e-07]
[1740590761328,0.20076131,87148.0,87147.0,9e-07]
[1740590761535,0.22948,87154.0,87148.0,0.00122312]
[1740590761737,0.172119,87149.0,87148.0,0.00122312]
[1740590762061,0.17212,87148.0,87147.0,9e-07]
[1740590763880,0.09172681,87150.0,87119.0,0.04692312]
[1740590764064,0.172144,87136.0,87135.0,0.0051235]
[1740590765270,0.19205118,87136.0,87135.0,5e-07]
[1740590765905,0.172144,87136.0,87135.0,5e-07]
[1740590768971,0.18077364,87136.0,87135.0,5e-07]
[1740590769261,0.172144,87136.0,87135.0,5e-07]
[1740590769465,0.229475,87156.0,87135.0,5e-07]
[1740590769667,0.005,87165.0,87143.0,0.00122312]
[1740590769879,0.005,87165.0,87147.0,0.00122312]
[1740590770084,0.27607942,87166.0,87156.0,0.00122312]
[1740590770085,0.172103,87157.0,87156.0,0.00122312]
[1740590770306,0.04663242,87166.0,87160.0,0.00122312]
[1740590770530,0.172091,87163.0,87162.0,0.0491]
[1740590770725,0.172091,87163.0,87162.0,1.5491]
[1740590771173,0.172091,87163.0,87162.0,1.5]
[1740590771800,0.17250239,87163.0,87162.0,1.5]
[1740590772022,0.00041139,87163.0,87162.0,1.80122312]
[1740590772914,0.00041139,87163.0,87162.0,2.12452312]
[1740590775286,0.17250239,87163.0,87162.0,0.6233]
[1740590775480,0.00041139,87163.0,87162.0,0.62452312]
[1740590776182,0.17250239,87163.0,87162.0,0.6233]
[1740590776331,0.17250239,87163.0,87162.0,0.3233]
[1740590776933,0.172095,87161.0,87160.0,0.00122312]
[1740590777670,0.17212,87148.0,87147.0,0.0008474]
[1740590777900,0.00041139,87163.0,87147.0,0.0008474]
[1740590777901,0.00083509,87163.0,87147.0,0.0008474]
[1740590778090,0.17212,87148.0,87147.0,0.0008474]
[1740590778505,0.14798911,87148.0,87147.0,0.0008474]
[1740590778716,0.22946,87161.0,87147.0,0.0008474]
[1740590778921,0.17212,87148.0,87147.0,0.0008474]
[1740590779261,0.229491,87150.0,87147.0,0.0008474]
[1740590779663,0.17212,87148.0,87147.0,0.0008474]
[1740590782024,0.229487,87151.0,87147.0,0.0008474]
[1740590782025,0.229489,87151.0,87147.0,0.0008474]
[1740590782280,0.00083509,87163.0,87147.0,0.0008474]
[1740590782281,0.17212,87148.0,87147.0,0.0008474]
[1740590783286,0.17212,87148.0,87112.0,0.3233]
[1740590783287,0.17216,87128.0,87112.0,0.3233]
[1740590783632,0.17216,87128.0,87120.0,0.00122312]
[1740590784257,0.17216,87128.0,87114.0,0.3]
[1740590784459,0.0004237,87163.0,87132.0,0.00122312]
[1740590784694,0.17215,87133.0,87132.0,0.00122312]
[1740590785308,0.0004237,87163.0,87135.0,0.00122312]
[1740590785524,0.0004237,87163.0,87158.0,0.00122312]
[1740590785732,0.172099,87159.0,87158.0,0.00122312]
[1740590786150,0.172098,87160.0,87158.0,0.00122312]
[1740590786349,0.172099,87159.0,87158.0,0.00122312]
[1740590786731,0.1725157,87163.0,87158.0,0.00122312]
[1740590786933,0.17251039,87159.0,87158.0,0.04972312]
[1740590787536,0.00041139,87159.0,87158.0,0.04972312]
[1740590787735,0.17251039,87159.0,87158.0,0.04972312]
[1740590788370,0.229459,87162.0,87158.0,0.04972312]
[1740590788515,0.172099,87159.0,87158.0,0.04972312]
[1740590789487,0.229459,87162.0,87150.0,0.3]
[1740590789488,0.172115,87151.0,87150.0,0.3]
[1740590789666,0.0004237,87163.0,87150.0,0.30122312]
[1740590789893,0.172098,87160.0,87157.0,0.00122312]
[1740590790040,0.0004237,87163.0,87157.0,0.00122312]
[1740590790261,0.172099,87159.0,87158.0,0.0008472]
[1740590790637,0.2298787,87163.0,87158.0,0.0008472]
[1740590790838,0.172099,87159.0,87158.0,0.0008472]
[1740590791705,0.0005086,87163.0,87158.0,0.0008472]
[1740590792082,0.0005086,87163.0,87158.0,0.00207032]
[1740590792289,0.172099,87159.0,87158.0,0.00207032]
[1740590792740,0.172099,87159.0,87158.0,0.0008472]
[1740590793460,0.0005086,87163.0,87162.0,0.47331612]
[1740590793696,0.0005086,87163.0,87162.0,0.30122312]
[1740590796146,0.0005086,87163.0,87162.0,0.94045697]
[1740590798730,0.0004236,87165.0,87162.0,0.94045697]
[1740590798860,0.0004236,87165.0,87164.0,0.48785297]
[1740590800078,0.0004236,87165.0,87164.0,1.98785297]
[1740590800288,0.0004236,87165.0,87164.0,1.80122312]
[1740590800669,0.0004236,87165.0,87164.0,0.30122312]
[1740590800797,0.0004236,87165.0,87164.0,0.63906397]
[1740590801006,0.0004236,87165.0,87164.0,2.13906397]
[1740590801845,0.0004236,87165.0,87164.0,2.12452312]
[1740590802187,0.1725106,87165.0,87164.0,0.6233]
[1740590802418,0.0004236,87165.0,87164.0,0.62452312]
[1740590802798,0.1725106,87165.0,87164.0,0.62452312]
[1740590803429,0.01877688,87204.0,87158.0,0.0008472]
[1740590803430,0.11172581,87192.0,87158.0,0.0008472]
[1740590803635,0.172097,87160.0,87159.0,0.00122312]
[1740590804096,0.22946,87162.0,87158.0,0.0008472]
[1740590804299,0.172099,87159.0,87158.0,0.0008472]
[1740590805923,0.01104,87194.0,87163.0,0.172089]
[1740590806128,9.918e-05,87187.0,87159.0,0.23068712]
[1740590806322,0.229425,87175.0,87159.0,0.23068712]
[1740590806580,0.229419,87177.0,87163.0,0.00122312]
[1740590806789,9.918e-05,87187.0,87166.0,0.00122312]
[1740590807087,0.172071,87174.0,87168.0,0.00122312]
[1740590807263,0.17207,87174.0,87168.0,0.00122312]
[1740590807475,0.229422,87176.0,87168.0,0.00122312]
[1740590807678,9.918e-05,87187.0,87168.0,0.00122312]
[1740590807889,0.172068,87175.0,87168.0,0.00122312]
[1740590808096,9.918e-05,87187.0,87168.0,0.00122312]
[1740590808293,0.172067,87175.0,87168.0,0.00122312]
[1740590808522,0.17214418,87187.0,87174.0,0.00122312]
[1740590808698,0.229397,87185.0,87174.0,0.00122312]
[1740590808896,9.918e-05,87187.0,87177.0,0.0487]
[1740590809100,9.918e-05,87187.0,87181.0,0.00122312]
[1740590809308,9.918e-05,87187.0,87186.0,0.47326812]
[1740590809507,0.17214218,87187.0,87186.0,0.30122312]
[1740590810044,0.17214218,87187.0,87186.0,1.8]
[1740590810850,0.172053,87182.0,87181.0,0.32452312]
[1740590811025,0.172053,87182.0,87181.0,0.3233]
[1740590811237,0.172053,87182.0,87181.0,0.32452312]
[1740590811625,0.19432042,87184.0,87181.0,0.32452312]
[1740590811848,9.918e-05,87187.0,87181.0,0.32452312]
[1740590812055,9.918e-05,87187.0,87186.0,0.00122312]
[1740590812256,9.918e-05,87187.0,87186.0,0.47326812]
[1740590812456,9.918e-05,87187.0,87186.0,1.97326812]
[1740590812652,9.918e-05,87187.0,87186.0,1.80122312]
[1740590812909,9.918e-05,87187.0,87186.0,1.97326812]
[1740590813079,9.918e-05,87187.0,87186.0,1.80122312]
[1740590813295,9.918e-05,87187.0,87186.0,1.97326812]
[1740590814170,9.918e-05,87187.0,87186.0,1.80122312]
[1740590814382,9.918e-05,87187.0,87186.0,0.30122312]
[1740590816015,9.918e-05,87187.0,87170.0,0.3233]
[1740590816218,9.918e-05,87187.0,87186.0,0.00122312]
[1740590817786,0.172026,87196.0,87186.0,0.00122312]
[1740590817992,0.172026,87196.0,87194.0,0.00122312]
[1740590818200,0.00012346,87214.0,87194.0,0.00122312]
[1740590818391,0.03945058,87196.0,87194.0,0.00122312]
[1740590818602,0.172023,87198.0,87194.0,0.00122312]
[1740590819015,0.00012346,87214.0,87194.0,0.00122312]
[1740590819228,0.03937118,87198.0,87194.0,0.00122312]
[1740590819376,0.229348,87204.0,87194.0,0.00122312]
[1740590819587,0.172019,87200.0,87194.0,0.00122312]
[1740590819968,0.04049868,87200.0,87194.0,0.00122312]
[1740590820172,0.229345,87205.0,87194.0,0.00122312]
[1740590820376,0.229333,87210.0,87194.0,0.00122312]
[1740590820602,0.00012346,87214.0,87194.0,0.00122312]
[1740590820603,0.172028,87195.0,87194.0,0.00122312]
[1740590820797,0.00012346,87214.0,87176.0,0.00122312]
[1740590820798,0.09172681,87209.0,87176.0,0.00122312]
[1740590820997,0.09172681,87209.0,87161.0,0.0008478]
[1740590820998,0.172083,87167.0,87166.0,0.00122312]
[1740590821161,0.09172681,87190.0,87167.0,0.00122312]
[1740590821162,0.00878574,87183.0,87167.0,0.00122312]
[1740590821362,0.01358432,87169.0,87167.0,0.00122312]
[1740590821589,0.172069,87175.0,87167.0,0.00122312]
[1740590821798,0.09172681,87190.0,87167.0,0.00122312]
[1740590822001,0.229386,87189.0,87167.0,0.00122312]
[1740590822206,0.22934126,87189.0,87167.0,0.00122312]
[1740590822406,0.13226831,87190.0,87168.0,0.01454085]
[1740590822609,0.172072,87173.0,87168.0,0.01454085]
[1740590822814,0.13226831,87190.0,87176.0,0.01454085]
[1740590822815,0.0405415,87190.0,87176.0,0.01454085]
[1740590823039,0.3,87212.0,87176.0,0.18660585]
[1740590823234,0.01877688,87209.0,87178.0,0.01454085]
[1740590823438,0.229376,87193.0,87178.0,0.01454085]
[1740590823730,0.007,87209.0,87176.0,0.01454085]
[1740590823911,0.00881336,87196.0,87176.0,0.01454085]
[1740590824117,0.00881336,87196.0,87168.0,0.00122312]
[1740590824317,0.01358432,87195.0,87174.0,0.00122312]
[1740590824561,0.172065,87176.0,87175.0,0.01454085]
[1740590824760,0.00881336,87196.0,87175.0,0.01454085]
[1740590824961,0.006,87190.0,87175.0,0.01576397]
[1740590825299,0.172047,87186.0,87176.0,0.01454085]
[1740590825434,0.006,87190.0,87176.0,0.01454085]
[1740590825637,0.006,87190.0,87176.0,0.01576397]
[1740590825847,0.02142308,87189.0,87182.0,0.01454085]
[1740590826046,0.02142308,87189.0,87177.0,0.17328612]
[1740590826047,0.02142308,87189.0,87178.0,0.01454085]
[1740590826470,0.172047,87186.0,87178.0,0.01454085]
[1740590826671,0.02142308,87189.0,87178.0,0.01454085]
[1740590826876,0.172055,87182.0,87178.0,0.01454085]
[1740590827394,0.172045,87187.0,87178.0,0.01454085]
[1740590827555,0.24175648,87214.0,87178.0,0.01454085]
[1740590827756,0.172059,87179.0,87178.0,0.01454085]
[1740590827958,0.172075,87171.0,87170.0,0.3233]
[1740590828777,0.172075,87171.0,87168.0,0.0008474]
[1740590828778,0.172079,87169.0,87168.0,0.0008474]
[1740590828993,0.229434,87171.0,87161.0,0.00064944]
[1740590829193,0.172099,87159.0,87158.0,0.00045048]
[1740590831852,0.175099,87159.0,87158.0,0.00045048]
[1740590833021,0.27723448,87159.0,87158.0,0.00045048]
[1740590834248,0.10513548,87159.0,87158.0,0.00045048]
[1740590834460,0.10513548,87159.0,87158.0,0.49255148]
[1740590834788,0.10513548,87159.0,87158.0,0.41099133]
[1740590834989,0.10513548,87159.0,87158.0,1.91099133]
[1740590835214,0.10513548,87159.0,87158.0,2.08309233]
[1740590835490,0.175099,87159.0,87158.0,1.87645048]
[1740590835629,0.15077506,87159.0,87158.0,1.82045048]
[1740590835832,0.15077506,87159.0,87158.0,1.80045048]
[1740590836036,0.15177506,87159.0,87158.0,1.80045048]
[1740590836454,0.15077506,87159.0,87158.0,1.80045048]
[1740590836661,0.15077506,87159.0,87158.0,1.50045048]
[1740590836863,0.15077506,87159.0,87158.0,0.00045048]
[1740590837495,0.1721042,87159.0,87158.0,0.00045048]
[1740590838239,0.17768251,87159.0,87158.0,0.00045048]
[1740590838643,0.18268251,87159.0,87158.0,0.00045048]
[1740590838842,0.17851102,87159.0,87158.0,0.00045048]
[1740590838999,0.1771042,87159.0,87158.0,0.00045048]
[1740590839201,0.1831042,87159.0,87158.0,0.00145048]
[1740590839955,0.16177506,87159.0,87158.0,0.00145048]
[1740590840234,0.011,87159.0,87158.0,0.00145048]
[1740590840993,0.06423756,87187.0,87163.0,0.229455]
[1740590841175,0.06423756,87187.0,87164.0,0.249451]
[1740590841375,0.229394,87186.0,87164.0,0.016]
[1740590841811,0.229394,87186.0,87165.0,1.5]
[1740590842063,0.32999683,87196.0,87165.0,1.5]
[1740590842265,0.172043,87187.0,87165.0,1.5]
[1740590842556,0.172043,87187.0,87157.0,0.172102]
[1740590842557,0.17216,87128.0,87122.0,0.005]
[1740590842765,0.17217,87123.0,87122.0,0.005]
[1740590842978,0.00169683,87140.0,87122.0,0.005]
[1740590843198,0.229498,87147.0,87122.0,0.005]
[1740590843416,0.17217,87123.0,87122.0,0.00541139]